Workbook

Sheet MYP, MSS
B1: Niki Taijala | E1: 22.12.2000 Vähäkyrö
B2: YKKÖSPESIS | E2: Runkosarja | L2: Runkosarja TOP-10 | Q2: Jatkosarjat | X2: SUOMENSARJA | AA2: Runkosarja | AH2: Runkosarja TOP-10 | AM2: Jatkosarjat
B3: Vuosi | C3: Sija | D3: Seura | E3: OTT | F3: KUN | G3: LÖI | H3: TOI | I3: KL | J3: KL-% | L3: LÖI | M3: TOI | N3: L+T | O3: KL | Q3: OTT | R3: KUN | S3: LÖI | T3: TOI | U3: KL | V3: KL-% | X3: Vuosi | Y3: Sija | Z3: Seura | AA3: OTT | AB3: KUN | AC3: LÖI | AD3: TOI | AE3: KL | AF3: KL-% | AH3: LÖI | AI3: TOI | AJ3: L+T | AK3: KL | AM3: OTT | AN3: KUN | AO3: LÖI | AP3: TOI | AQ3: KL | AR3: KL-%
X4: 2016 | Y4: 1. | Z4: VäVi | AA4: 1 | AB4: 0 | AC4: 0 | AD4: 1 | AE4: 0 | AF4: 0.0 % | AG4: 1
X6: 2018 | Y6: 5. | Z6: SMJ | AA6: 14 | AB6: 0 | AC6: 2 | AD6: 2 | AE6: 26 | AF6: 35.1 % | AG6: =PRODUCT(AE6/AF6) -> 74
X7: 2019 | Y7: 2. | Z7: SMJ | AA7: 2 | AB7: 0 | AC7: 0 | AD7: 0 | AE7: 7 | AF7: 63.6 % | AG7: 11
X8: 2020 | Y8: 5. | Z8: SMJ | AA8: 8 | AB8: 0 | AC8: 1 | AD8: 5 | AE8: 21 | AF8: 52.5 % | AG8: 40
B9: 2021 | C9: 10. | D9: VäVi | E9: 19 | F9: 0 | G9: 2 | H9: 1 | I9: 16 | J9: 36.4 % | K9: 44 | Q9: 2 | R9: 0 | S9: 0 | T9: 0 | U9: 0 | V9: 0.0 % | W9: 3 | X9: 2021 | Y9: 4. | Z9: YKV | AA9: 2 | AB9: 0 | AC9: 1 | AD9: 1 | AE9: 5 | AF9: 41.7 % | AG9: 12 | AM9: 2 | AN9: 0 | AO9: 1 | AP9: 0 | AQ9: 3 | AR9: 30.0 % | AS9: 10
B10: 2022 | C10: 10. | D10: APV | E10: 12 | F10: 0 | G10: 0 | H10: 0 | I10: 16 | J10: 48.5 % | K10: 33 | Q10: 3 | R10: 0 | S10: 1 | T10: 0 | U10: 4 | V10: 66.7 % | W10: 6 | X10: 2022 | Y10: 3. | Z10: VM Jun | AA10: 12 | AB10: 0 | AC10: 0 | AD10: 10 | AE10: 41 | AF10: 50.0 % | AG10: 82
X11: 2023 | Y11: 6. | Z11: VM Jun | AA11: 16 | AB11: 0 | AC11: 1 | AD11: 14 | AE11: 70 | AF11: 69.3 % | AG11: 101 | AK11: 9.
B12: YHTEENSÄ | E12: =SUM(E4:E11) -> 31 | F12: =SUM(F4:F11) -> 0 | G12: =SUM(G4:G11) -> 2 | H12: =SUM(H4:H11) -> 1 | I12: =SUM(I4:I11) -> 32 | J12: =PRODUCT(I12/K12) -> 41.6 % | K12: =SUM(K4:K11) -> 77 | Q12: =SUM(Q4:Q11) -> 5 | R12: =SUM(R4:R11) -> 0 | S12: =SUM(S4:S11) -> 1 | T12: =SUM(T4:T11) -> 0 | U12: =SUM(U4:U11) -> 4 | V12: =PRODUCT(U12/W12) -> 44.4 % | W12: =SUM(W4:W11) -> 9 | X12: YHTEENSÄ | AA12: =SUM(AA4:AA11) -> 55 | AB12: =SUM(AB4:AB11) -> 0 | AC12: =SUM(AC4:AC11) -> 5 | AD12: =SUM(AD4:AD11) -> 33 | AE12: =SUM(AE4:AE11) -> 170 | AF12: =PRODUCT(AE12/AG12) -> 53.0 % | AG12: =SUM(AG4:AG11) -> 321.010817 | AM12: =SUM(AM4:AM11) -> 2 | AN12: =SUM(AN4:AN11) -> 0 | AO12: =SUM(AO4:AO11) -> 1 | AP12: =SUM(AP4:AP11) -> 0 | AQ12: =SUM(AQ4:AQ11) -> 3 | AR12: =PRODUCT(AQ12/AS12) -> 30.0 % | AS12: =SUM(AS4:AS11) -> 10
B14: KAIKKI OTTELUT | E14: OTT | F14: KUN | G14: LÖI | H14: TOI | I14: KL | J14: KL-% | L14: ka/L | M14: ka/T | N14: ka/l+t | O14: ka/kl | R14: Seurat | T14: VäVi = Vähänkyrön Viesti (1938), kasvattajaseura
B15: SUPERPESIS | E15: 0 | F15: 0 | G15: 0 | H15: 0 | I15: 0 | J15: 0.0 % | L15: 0.00 | M15: 0.00 | N15: 0.00 | O15: 0.00 | T15: SMJ = Seinäjoen Maila-Jussit (1932)
B16: YKKÖSPESIS | E16: =PRODUCT(E12+Q12) -> 36 | F16: =PRODUCT(F12+R12) -> 0 | G16: =PRODUCT(G12+S12) -> 3 | H16: =PRODUCT(H12+T12) -> 1 | I16: =PRODUCT(I12+U12) -> 36 | J16: =PRODUCT(I16/K16) -> 41.9 % | K16: =PRODUCT(K12+W12) -> 86 | L16: =PRODUCT((F16+G16)/E16) -> 0.08 | M16: =PRODUCT(H16/E16) -> 0.03 | N16: =PRODUCT((F16+G16+H16)/E16) -> 0.11 | O16: =PRODUCT(I16/E16) -> 1.00 | T16: YKV = Ylistaron Kilpa-Veljet (1945)
B17: SUOMENSARJA | E17: =PRODUCT(AA12+AM12) -> 57 | F17: =PRODUCT(AB12+AN12) -> 0 | G17: =PRODUCT(AC12+AO12) -> 6 | H17: =PRODUCT(AD12+AP12) -> 33 | I17: =PRODUCT(AE12+AQ12) -> 173 | J17: =PRODUCT(I17/K17) -> 52.3 % | K17: =PRODUCT(AG12+AS12) -> 331.010817 | L17: =PRODUCT((F17+G17)/E17) -> 0.11 | M17: =PRODUCT(H17/E17) -> 0.58 | N17: =PRODUCT((F17+G17+H17)/E17) -> 0.68 | O17: =PRODUCT(I17/E17) -> 3.04 | T17: APV = Alavuden Peli-Veikot (1953)
B18: YHTEENSÄ | E18: =SUM(E15:E17) -> 93 | F18: =SUM(F15:F17) -> 0 | G18: 9 | H18: 34 | I18: 209 | J18: =PRODUCT(I18/K18) -> 50.1 % | K18: =SUM(K15:K17) -> 417.010817 | L18: =PRODUCT((F18+G18)/E18) -> 0.10 | M18: =PRODUCT(H18/E18) -> 0.37 | N18: =PRODUCT((F18+G18+H18)/E18) -> 0.46 | O18: =PRODUCT(I18/E18) -> 2.25 | T18: VM Jun = Vaasan Mailan Juniorit (1993)
